Workbook

Sheet Budget
I3: BUSINESS BUDGET | L3: This column contains labels used by the
H4: Month/Year: | I4: =NOW() -> 2010-04-19T20:27:14.440 | L4: template's five charts. They will not
L5: be included when you print this sheet.
D7: SUMMARY | E7: ACTUAL | F7: BUDGETED | G7: OVER BUDGET | H7: UNDER BUDGET
D8: Total income | E8: =E20 -> 1,432,500.00 | F8: =F20 -> 1,318,080.00 | G8: =IF(E8-F8>0,E8-F8,"") -> 114,420.00 | H8: =IF(E8-F8<0,E8-F8,"") ->  | L8: Total Income
D9: Total expenses | E9: =IF(E31+E46+E56,E31+E46+E56,"") -> 339,760.00 | F9: =IF(F31+F46+F56,F31+F46+F68,"") -> 314,910.00 | G9: =IF(E9-F9>0,E9-F9,"") -> 24,850.00 | H9: =IF(E9-F9<0,E9-F9,"") ->  | L9: Total Expenses
D10: Income less expenses: | E10: =IF(E8-E9,E8-E9,"") -> 1,092,740.00 | F10: =IF(F8-F9,F8-F9,"") -> 1,003,170.00 | G10: =IF(E10-F10>0,E10-F10,"") -> 89,570.00 | H10: =IF(E10-F10<0,E10-F10,"") -> 
D12: INCOME DETAILS | E12: ACTUAL | F12: BUDGETED | G12: OVER BUDGET | H12: UNDER BUDGET | I12: NOTES
D13: Sales | E13: 1,400,000.00 | F13: 1,200,000.00 | G13: =IF(E13-F13>0,E13-F13,"") -> 200,000.00 | H13: =IF(E13-F13<0,E13-F13,"") ->  | I13: Increase advertising next year. | L13: Sales
D14: Interest earned | E14: 5,000.00 | F14: 4,500.00 | G14: 500.00 | L14: Interest
D15: Fees | E15: 1,000.00 | F15: 980.00 | G15: 20.00 | L15: Fees
D16: Commissions | E16: 10,000.00 | F16: 98,000.00 | H16: -88,000.00 | L16: Commissions
D17: Rent | E17: 9,000.00 | F17: 8,000.00 | G17: 1,000.00 | L17: Rent
D18: Royalties | E18: 2,500.00 | F18: 2,600.00 | H18: -100.00 | L18: Royalties
D19: Other | E19: 5,000.00 | F19: 4,000.00 | G19: 1,000.00 | L19: Other
D20: Total income: | E20: =IF(SUM(E13:E19),SUM(E13:E19),"") -> 1,432,500.00 | F20: =IF(SUM(F13:F19),SUM(F13:F19),"") -> 1,318,080.00 | G20: 114,420.00
D22: EXPENSE DETAILS | E22: ACTUAL | F22: BUDGETED | G22: OVER BUDGET | H22: UNDER BUDGET | I22: NOTES
D23: SELLING
D24: Salaries and wages | E24: 246,000.00 | F24: 248,000.00 | G24: =IF(E24-F24>0,E24-F24,"") ->  | H24: =IF(E24-F24<0,E24-F24,"") -> -2,000.00 | L24: Salaries
D25: Commissions | E25: 10,000.00 | F25: 12,000.00 | H25: -2,000.00 | L25: Commissions
D26: Advertising | E26: 6,000.00 | F26: 8,000.00 | H26: -2,000.00 | I26: Increase Here 3%. | L26: Advertising
D27: Delivery | E27: 0.00 | F27: 0.00 | L27: Delivery
D28: Shipping | E28: 0.00 | F28: 0.00 | L28: Shipping
D29: Travel | E29: 4,600.00 | F29: 5,600.00 | H29: -1,000.00 | L29: Travel
D30: Other | E30: 1,000.00 | F30: 1,200.00 | H30: -200.00 | L30: Other
D31: Total sales expenses: | E31: =IF(SUM(E24:E30),SUM(E24:E30),"") -> 267,600.00 | F31: =IF(SUM(F24:F30),SUM(F24:F30),"") -> 274,800.00 | H31: -7,200.00
D32: Percent of total: | E32: =IF(E9,E31/E9,"") -> 78.76% | F32: =IF(F9,F31/F9,"") -> 87.26%
D33: ADMINISTRATIVE
D34: Salaries and wages | E34: 12,000.00 | F34: 10,000.00 | G34: =IF(E34-F34>0,E34-F34,"") -> 2,000.00 | H34: =IF(E34-F34<0,E34-F34,"") ->  | L34: Salaries
D35: Employee benefits | E35: 5,000.00 | F35: 6,000.00 | H35: -1,000.00 | L35: Benefits
D36: Payroll taxes | E36: 500.00 | F36: 500.00 | L36: Payroll
D37: Insurance | E37: 14,000.00 | F37: 14,000.00 | L37: Insurance
D38: Loans | E38: 6,000.00 | F38: 5,000.00 | G38: 1,000.00 | L38: Loans
D39: Office supplies | E39: 4,000.00 | F39: 4,100.00 | H39: -100.00 | L39: Supplies
D40: Travel & entertainment | E40: 200.00 | F40: 190.00 | G40: 10.00 | L40: Travel
D41: Postage | E41: 300.00 | F41: 320.00 | H41: -20.00 | L41: Postage
D42: Furnishings | E42: 0.00 | F42: 0.00 | L42: Furnish
D43: Contributions | E43: 0.00 | F43: 0.00 | L43: Contribute
D44: Dues | E44: 0.00 | F44: 0.00 | L44: Dues
D45: Other | E45: 0.00 | F45: 0.00 | L45: Other
D46: Total admin. expenses: | E46: =IF(SUM(E34:E45),SUM(E34:E45),"") -> 42,000.00 | F46: =IF(SUM(F34:F45),SUM(F34:F45),"") -> 40,110.00 | G46: 1,890.00
D47: Percent of total: | E47: =IF(E9,E46/E9,"") -> 12.36% | F47: =IF(F9,F46/F9,"") -> 12.74%
D48: SERVICE & EQUIPMENT
D49: Accounting | E49: 1,200.00 | F49: 1,500.00 | G49: =IF(E49-F49>0,E49-F49,"") ->  | H49: =IF(E49-F49<0,E49-F49,"") -> -300.00 | L49: Accounting
D50: Legal | E50: 5,000.00 | F50: 6,000.00 | H50: -1,000.00 | L50: Legal
D51: Utilities | E51: 15,000.00 | F51: 15,789.00 | H51: -789.00 | I51: Too high. | L51: Utilities
D52: Telephone | E52: 5,000.00 | F52: 4,800.00 | G52: 200.00 | L52: Telephone
D53: Equipment purchases | E53: 3,400.00 | F53: 3,000.00 | G53: 400.00 | L53: Equipment
D54: Rent & maintenance | E54: 560.00 | F54: 600.00 | H54: -40.00 | L54: Rentals
D55: Other | E55: 0.00 | F55: 0.00 | L55: Other
D56: Total S&E expenses: | E56: =IF(SUM(E49:E55),SUM(E49:E55),"") -> 30,160.00 | F56: =IF(SUM(F49:F55),SUM(F49:F55),"") -> 31,689.00 | H56: -1,529.00
D57: Percent of total: | E57: =IF(E9,E56/E9,"") -> 0.09 | F57: =IF(E9,F56/F9,"") -> 0.10

Sheet Summary

Sheet Adm. Expenses

Sheet Service Expenses

Sheet Income Details

Sheet Selling Expense

Sheet Module1 (hidden)
